bitfinex-derivatives/quotes_BNBF0:USTF0_20250305
["timestamp","ask_amount","ask_price","bid_price","bid_amount"]
[1741216963363,2.17465464,597.53,596.77,0.162]
[1741216963567,0.96880567,597.52,596.77,0.162]
[1741216963769,0.96880567,597.51,596.77,0.162]
[1741216963965,0.96880567,597.5,596.77,0.162]
[1741216964165,0.96880567,597.49,596.77,0.162]
[1741216964371,0.96880567,597.48,596.77,0.162]
[1741216964567,0.96880567,597.47,596.77,0.162]
[1741216964766,0.96880567,597.46,596.77,0.162]
[1741216964970,1.20584897,597.48,596.77,0.162]
[1741216964971,0.96880567,597.45,596.77,0.162]
[1741216965177,0.96880567,597.44,596.81,1.24946234]
[1741216965366,0.96880567,597.43,596.81,1.24946234]
[1741216965570,2.17465464,597.47,596.81,1.24946234]
[1741216965870,0.96880567,597.46,596.81,1.24946234]
[1741216966070,0.96880567,597.45,596.81,1.24946234]
[1741216966266,0.96880567,597.44,596.81,1.24946234]
[1741216966470,0.96880567,597.43,596.81,1.24946234]
[1741216966666,0.96880567,597.42,596.81,1.24946234]
[1741216967068,0.96880567,597.41,596.81,1.24946234]
[1741216967272,3.02083038,597.56,596.81,1.24946234]
[1741216967469,2.51860538,597.55,596.81,1.24946234]
[1741216967669,2.51860538,597.55,596.82,1.24946234]
[1741216967670,2.51860538,597.54,596.82,1.24946234]
[1741216967870,3.72445435,597.53,596.82,1.24946234]
[1741216968071,3.02083038,597.52,596.82,1.24946234]
[1741216968267,0.96880567,597.51,596.82,1.24946234]
[1741216968566,2.17465464,597.5,596.82,1.24946234]
[1741216968771,0.96880567,597.49,596.83,0.162]
[1741216968968,0.96880567,597.48,596.83,0.162]
[1741216969166,0.96880567,597.47,596.83,0.162]
[1741216969371,0.96880567,597.46,596.83,0.162]
[1741216969675,2.17465464,597.45,596.83,0.162]
[1741216969974,2.17465464,597.44,596.83,0.162]
[1741216970174,0.96880567,597.43,596.83,0.162]
[1741216970368,0.96880567,597.42,596.83,1.41146234]
[1741216970571,0.96880567,597.41,596.83,1.41146234]
[1741216970771,0.96880567,597.42,596.83,1.41146234]
[1741216970973,2.17465464,597.41,596.83,1.41146234]
[1741216971168,0.96880567,597.4,596.83,1.41146234]
[1741216971676,0.96880567,597.45,596.83,1.41146234]
[1741216971875,0.96880567,597.44,596.83,1.41146234]
[1741216972175,2.17465464,597.43,596.83,1.41146234]
[1741216972475,0.96880567,597.42,596.83,1.41146234]
[1741216972675,0.96880567,597.41,596.83,1.41146234]
[1741216972869,0.96880567,597.4,596.83,1.41146234]
[1741216973075,2.05200605,597.57,596.83,1.41146234]
[1741216973076,1.20584897,597.41,596.83,1.41146234]
[1741216973376,0.96880567,597.4,596.83,1.41146234]
[1741216973575,0.96880567,597.39,596.83,1.41146234]
[1741216973775,2.17465464,597.4,596.83,1.41146234]
[1741216973977,0.96880567,597.39,596.83,0.162]
[1741216974678,3.02081172,597.49,596.83,0.162]
[1741216974879,2.51860538,597.48,596.83,0.162]
[1741216975078,0.96880567,597.47,596.83,0.162]
[1741216975378,2.17465464,597.46,596.83,0.162]
[1741216975581,0.96880567,597.45,596.83,0.162]
[1741216975781,2.17465464,597.44,596.83,0.162]
[1741216975979,0.96880567,597.43,596.83,0.162]
[1741216976177,0.96880567,597.42,596.83,0.162]
[1741216976378,0.96880567,597.41,596.83,0.162]
[1741216976579,0.96880567,597.4,596.83,0.162]
[1741216976775,0.96880567,597.39,596.83,0.162]
[1741216976978,0.96880567,597.38,596.83,0.162]
[1741216977179,2.17465464,597.37,596.83,0.162]
[1741216977380,0.96880567,597.36,596.83,0.162]
[1741216978080,0.96880567,597.46,596.83,0.162]
[1741216978281,2.17465464,597.45,596.83,0.162]
[1741216978477,0.96880567,597.44,596.83,0.162]
[1741216978773,0.96880567,597.43,596.83,0.162]
[1741216978977,0.96880567,597.42,596.83,0.162]
[1741216979175,0.96880567,597.41,596.83,0.162]
[1741216979377,1.20584897,597.43,596.83,0.162]
[1741216979578,2.17526626,597.42,596.83,0.162]
[1741216979774,0.96941729,597.41,596.83,0.162]
[1741216980076,2.17526626,597.4,596.83,0.162]
[1741216980276,0.96941729,597.39,596.83,0.162]
[1741216980479,0.96941729,597.38,596.83,0.162]
[1741216980780,0.96941729,597.37,596.83,0.162]
[1741216981180,3.02273302,597.49,596.83,0.162]
[1741216981475,3.72633393,597.48,596.83,0.162]
[1741216981678,0.96941729,597.47,596.83,0.162]
[1741216981877,0.96941729,597.46,596.83,0.162]
[1741216982078,0.96941729,597.45,596.83,0.162]
[1741216982279,0.96941729,597.44,596.83,0.162]
[1741216982579,0.96941729,597.43,596.83,0.162]
[1741216982779,2.17526626,597.42,596.83,0.162]
[1741216982980,0.96941729,597.41,596.83,0.162]
[1741216983282,2.17526626,597.4,596.83,0.162]
[1741216983480,0.96941729,597.39,596.83,0.162]
[1741216983682,0.96941729,597.38,596.83,0.162]
[1741216983981,2.17526626,597.37,596.83,0.162]
[1741216984281,0.96941729,597.36,596.83,0.162]
[1741216984677,2.52048496,597.44,596.83,0.162]
[1741216984882,0.96941729,597.43,596.83,0.162]
[1741216985078,2.17526626,597.42,596.83,0.162]
[1741216985280,0.96941729,597.41,596.83,0.162]
[1741216985483,0.96941729,597.4,596.83,0.162]
[1741216985688,0.96941729,597.39,596.83,0.162]
[1741216985880,0.96941729,597.38,596.83,0.162]
[1741216986079,0.96941729,597.37,596.83,0.162]
[1741216986278,2.17526626,597.38,596.83,0.162]
[1741216986577,0.96946584,597.37,596.83,0.162]
[1741216986784,0.96946584,597.36,596.83,0.162]
[1741216986984,0.96946584,597.45,596.83,0.162]
[1741216987283,2.17531481,597.44,596.83,0.162]
[1741216987478,0.96946584,597.43,596.83,0.162]
[1741216987682,0.96946584,597.42,596.83,0.162]
[1741216987878,0.96946584,597.41,596.83,0.162]
[1741216988082,0.96946584,597.4,596.83,0.162]
[1741216988283,2.17531481,597.39,596.83,0.162]
[1741216988579,0.96946584,597.38,596.83,0.162]
[1741216988779,0.96946584,597.37,596.83,0.162]
[1741216988981,2.17531481,597.36,596.83,0.162]
[1741216989181,0.96946584,597.35,596.83,0.162]
[1741216989379,0.96946584,597.34,596.83,0.162]
[1741216989579,1.20584897,597.35,596.83,0.162]
[1741216989782,0.96946584,597.34,596.83,1.41146234]
[1741216990082,1.29431087,597.55,596.83,1.41146234]
[1741216990083,3.72646015,597.41,596.83,1.41146234]
[1741216990278,2.52061118,597.4,596.83,1.41146234]
[1741216990479,0.96946584,597.39,596.83,1.41146234]
[1741216990683,0.96946584,597.38,596.83,1.41146234]
[1741216990879,0.96946584,597.37,596.83,1.41146234]
[1741216991082,0.96946584,597.36,596.83,1.41146234]
[1741216991282,0.96946584,597.35,596.83,1.41146234]
[1741216991483,2.17531481,597.34,596.83,1.41146234]
[1741216991684,0.96946584,597.33,596.83,1.41146234]
[1741216991881,0.96946584,597.32,596.83,1.24946234]
[1741216992081,0.96946584,597.33,596.83,1.24946234]
[1741216992280,2.17531481,597.32,596.83,1.24946234]
[1741216992486,0.96946584,597.31,596.76,0.3351431]
[1741216992885,1.20584897,597.3,596.76,0.3351431]
[1741216993686,2.17547724,597.29,596.76,0.3351431]
[1741216993881,0.96962827,597.28,596.76,0.3351431]
[1741216994385,1.20584897,597.27,596.76,0.3351431]
[1741216994686,2.17547724,597.27,596.76,0.3351431]
[1741216994886,2.17547724,597.26,596.76,0.3351431]
[1741216995087,1.20584897,597.26,596.76,0.3351431]
[1741216995586,0.96957486,597.32,596.76,0.3351431]
[1741216995781,2.17542383,597.31,596.76,0.3351431]
[1741216995980,0.96957486,597.3,596.76,0.3351431]
[1741216996788,1.20584897,597.31,596.76,0.3351431]
[1741216998389,2.17521984,597.31,596.76,0.3351431]
[1741216998586,0.96939887,597.3,596.76,0.3351431]
[1741216998788,1.20584897,597.31,596.76,0.3351431]
[1741216999587,1.20584897,597.29,596.76,0.3351431]
[1741217000090,2.17527628,597.3,596.76,0.3351431]
[1741217000283,1.20584897,597.3,596.76,0.3351431]
[1741217000690,2.17521952,597.32,596.76,0.3351431]
[1741217001487,0.96943256,597.31,596.76,0.3351431]
[1741217002291,2.17528153,597.32,596.76,0.3351431]
[1741217002492,0.96943256,597.31,596.76,0.3351431]
[1741217003491,2.17528153,597.32,596.76,0.3351431]
[1741217003693,0.96943256,597.31,596.76,0.3351431]
[1741217006188,1.20584897,597.32,596.76,0.3351431]
[1741217006393,0.738,597.33,596.76,0.3351431]
[1741217010197,0.738,597.33,596.78,1.24946234]
[1741217011803,0.738,597.33,596.76,0.3351431]
[1741217011804,0.738,597.33,596.8,1.24946234]
[1741217014403,0.738,597.33,596.87,1.24946234]
[1741217016107,0.738,597.33,596.83,1.24946234]
[1741217018609,0.738,597.33,596.78,0.29141213]
[1741217020504,0.738,597.33,596.76,0.3351431]
[1741217020705,0.738,597.33,596.78,0.2914402]
[1741217022410,0.738,597.33,596.78,0.4534402]
[1741217023505,3.02170373,597.53,596.78,0.162]
[1741217023710,2.51948196,597.52,596.78,0.4534402]
[1741217024004,0.96936169,597.51,596.78,0.4534402]
[1741217024208,0.96936169,597.5,596.78,0.4534402]
[1741217024406,0.96936169,597.49,596.78,0.4534402]
[1741217024609,0.96936169,597.48,596.78,0.4534402]
[1741217024808,0.96936169,597.47,596.78,0.4534402]
[1741217025011,0.96936169,597.46,596.78,0.4534402]
[1741217025210,2.17813484,597.45,596.78,0.4534402]
[1741217025411,0.96936169,597.44,596.78,0.4534402]
[1741217025611,2.17813484,597.43,596.78,0.4534402]
[1741217025811,0.96936169,597.42,596.78,0.4534402]
[1741217026312,3.02170989,597.5,596.78,0.4534402]
[1741217026512,0.797,597.41,596.78,0.162]
[1741217026810,0.797,597.41,596.78,0.45341946]
[1741217029109,1.76636169,597.41,596.78,0.45341946]
[1741217029311,0.797,597.41,596.78,0.45341946]
[1741217029508,0.797,597.41,596.78,0.162]
[1741217029713,0.797,597.41,596.78,0.45343044]
[1741217032316,0.96936169,597.4,596.78,0.45343044]
[1741217032516,0.96936169,597.39,596.78,0.45343044]
[1741217032719,0.96936169,597.4,596.78,0.45343044]
[1741217032917,0.96936169,597.39,596.78,0.45343044]
[1741217033116,2.17813484,597.4,596.78,0.45343044]
[1741217033317,0.96936169,597.39,596.78,0.45343044]
[1741217033518,2.17813484,597.4,596.78,0.45343044]
[1741217034019,1.20877315,597.4,596.78,0.45343044]
[1741217034217,0.797,597.41,596.78,0.45343044]
[1741217034915,0.9688941,597.4,596.78,0.45343044]
[1741217035312,2.17776259,597.4,596.78,0.45343044]
[1741217035518,2.17776259,597.4,596.78,0.162]
[1741217035721,2.17776259,597.4,596.78,0.45343166]
[1741217035921,1.20886849,597.39,596.78,0.45343166]
[1741217037222,1.20886849,597.38,596.78,0.45343166]
[1741217037429,1.20886849,597.39,596.78,0.45343166]
[1741217037918,1.20886849,597.38,596.78,0.45343166]
[1741217038517,1.20886849,597.39,596.78,0.162]
[1741217038722,1.20886849,597.39,596.78,0.4534341]
[1741217039624,1.20886849,597.4,596.78,0.4534341]
[1741217039823,2.17776259,597.4,596.78,0.4534341]
[1741217040028,1.20886849,597.39,596.78,0.4534341]
[1741217041228,1.20886849,597.38,596.78,0.4534341]
[1741217041932,0.9688941,597.38,596.78,0.4534341]
[1741217042125,1.20886849,597.39,596.78,0.4534341]
[1741217042331,1.20886849,597.38,596.78,0.4534341]
[1741217042530,2.17776259,597.38,596.78,0.4534341]
[1741217042733,0.9688941,597.37,596.78,0.4534341]
[1741217042931,0.9688941,597.36,596.78,0.4534341]
[1741217043333,1.20886849,597.35,596.78,0.4534341]
[1741217044135,1.20886849,597.34,596.78,0.4534341]
[1741217044535,0.9688941,597.36,596.78,0.162]
[1741217045035,1.20886849,597.35,596.78,0.162]
[1741217045839,0.9688941,597.37,596.78,0.162]
[1741217046039,0.9688941,597.36,596.78,0.162]
[1741217046234,2.17776259,597.37,596.78,0.162]
[1741217046431,2.17776259,597.36,596.78,0.162]
[1741217046630,0.9688941,597.35,596.78,0.162]
[1741217046830,0.9688941,597.34,596.78,0.162]
[1741217047430,0.9688941,597.38,596.78,0.162]
[1741217047638,0.9688941,597.37,596.78,0.162]
[1741217047838,2.17776259,597.36,596.78,0.162]
[1741217048037,0.9688941,597.35,596.78,0.162]
[1741217048240,1.20886849,597.36,596.78,0.162]
[1741217048737,1.20886849,597.35,596.78,0.162]
[1741217048939,2.17776259,597.35,596.78,0.162]
[1741217049147,0.9688941,597.34,596.78,0.162]
[1741217049334,2.17776259,597.37,596.78,0.162]
[1741217049536,0.9688941,597.36,596.78,0.162]
[1741217050136,2.17776259,597.36,596.78,0.162]
[1741217050439,0.9688941,597.35,596.78,0.162]
[1741217050837,0.9688941,597.38,596.78,0.162]
[1741217051038,0.9688941,597.37,596.78,0.162]
[1741217051238,0.9688941,597.38,596.78,0.162]
[1741217051440,1.20886849,597.36,596.78,0.162]
[1741217052942,0.9688941,597.38,596.78,0.162]
[1741217053141,0.9688941,597.37,596.78,0.162]
[1741217053342,2.17776259,597.38,596.78,0.162]
[1741217053543,0.9688941,597.37,596.78,0.162]
[1741217053941,2.17776259,597.37,596.78,0.162]
[1741217054244,0.9688941,597.36,596.78,0.162]
[1741217054543,2.17776259,597.39,596.78,0.162]
[1741217054743,0.9688941,597.38,596.78,0.162]
[1741217054939,0.9688941,597.37,596.78,0.162]
[1741217055144,1.20886849,597.37,596.78,0.162]
[1741217055338,2.17776259,597.36,596.78,0.162]
[1741217055541,0.9688941,597.35,596.78,0.162]
[1741217055939,1.20886849,597.36,596.78,0.162]
[1741217056244,0.9688941,597.35,596.78,0.162]
[1741217056442,1.55023523,597.4,596.78,0.162]
[1741217056443,2.17776259,597.38,596.78,0.162]
[1741217056638,0.9688941,597.37,596.78,0.162]
[1741217056837,0.9688941,597.36,596.78,0.162]
[1741217057042,0.9688941,597.35,596.78,0.162]
[1741217057543,2.17776259,597.35,596.78,0.162]
[1741217057745,0.9688941,597.34,596.78,0.162]
[1741217057942,1.20886849,597.35,596.78,0.162]
[1741217058243,0.9688941,597.37,596.78,0.162]
[1741217058443,0.9688941,597.36,596.78,0.162]
[1741217058642,0.9688941,597.35,596.78,0.162]
[1741217058845,0.9688941,597.36,596.78,0.162]
[1741217059145,0.9688941,597.35,596.78,0.162]
[1741217059345,1.20886849,597.36,596.78,0.162]
[1741217060945,0.789,597.35,596.78,0.162]
[1741217061551,0.789,597.35,596.78,1.41146234]
[1741217064550,0.789,597.35,596.82,1.24946234]
[1741217067355,0.789,597.35,596.85,1.24946234]
[1741217069456,0.789,597.35,596.83,1.24946234]
[1741217071958,0.789,597.35,596.85,1.24946234]
[1741217074458,0.789,597.35,596.81,1.24946234]
[1741217074864,0.789,597.35,596.84,0.29139505]
[1741217075770,3.019859,597.62,596.84,0.29139505]
[1741217075958,2.51771052,597.61,596.84,0.29139505]
[1741217076158,0.9683502,597.6,596.84,0.29139505]
[1741217076359,0.9683502,597.59,596.84,0.29139505]
[1741217076558,0.9683502,597.58,596.84,0.29139505]
[1741217076760,0.9683502,597.57,596.84,0.29139505]
[1741217076958,0.9683502,597.56,596.84,0.29139505]
[1741217077158,2.17721869,597.58,596.84,0.29139505]
[1741217077364,0.9683502,597.57,596.84,0.29139505]
[1741217077561,0.9683502,597.56,596.8,0.162]
[1741217077763,0.9683502,597.55,596.84,0.29137798]
[1741217078264,3.019859,597.65,596.84,0.29137798]
[1741217078464,2.51771052,597.64,596.84,0.29137798]
[1741217078765,2.17721869,597.63,596.84,0.29137798]
[1741217078965,3.24621869,597.62,596.84,0.29137798]
[1741217079165,2.51771052,597.61,596.84,0.29137798]
[1741217079365,0.9683502,597.6,596.84,0.29137798]
[1741217079565,0.9683502,597.59,596.84,0.29137798]
[1741217079766,0.9683502,597.58,596.84,0.29137798]
[1741217080063,1.54936032,597.61,596.84,0.29137798]
[1741217080064,2.17721869,597.57,596.84,0.29137798]
[1741217080264,0.9683502,597.56,596.84,0.29137798]
[1741217080465,0.9683502,597.56,596.8,0.162]
[1741217080866,2.17721869,597.57,596.84,0.29138041]
[1741217081067,0.9683502,597.56,596.84,0.29138041]
[1741217081668,0.9683502,597.58,596.84,0.29138041]
[1741217081865,0.9683502,597.57,596.84,0.29138041]
[1741217082062,0.9683502,597.56,596.84,0.29138041]
[1741217082263,3.72657901,597.58,596.84,0.29138041]
[1741217082569,3.72657901,597.57,596.84,0.29138041]
[1741217082764,2.51771052,597.56,596.84,0.29138041]
[1741217083069,0.9683502,597.56,596.84,0.29138041]
[1741217083264,1.20886849,597.55,596.84,0.29138041]
[1741217083467,1.20886849,597.55,596.8,1.41146234]
[1741217083663,2.17721869,597.58,596.8,1.41146234]
[1741217083865,0.9683502,597.57,596.84,0.29137676]
[1741217084672,0.9683502,597.6,596.84,0.29137676]
[1741217084875,2.17721869,597.59,596.84,0.29137676]
[1741217085172,2.17721869,597.58,596.84,0.29137676]
[1741217085473,0.9683502,597.57,596.84,0.29137676]
[1741217085673,2.17721869,597.58,596.84,0.29137676]
[1741217085875,0.9683502,597.57,596.84,0.29137676]
[1741217086075,1.20886849,597.58,596.84,0.29137676]
[1741217086475,2.51771052,597.59,596.8,0.162]
[1741217086676,0.9683502,597.59,596.8,0.162]
[1741217086975,1.20886849,597.58,596.84,0.29137676]
[1741217087274,0.9683502,597.61,596.84,0.29137676]
[1741217087481,1.069,597.62,596.84,0.29137676]
[1741217089574,2.03639252,597.62,596.84,0.29137676]
[1741217089775,3.24526101,597.62,596.84,0.29137676]
[1741217090074,0.96739252,597.61,596.84,0.29137676]
[1741217090373,0.96739252,597.61,596.85,0.162]
[1741217090770,1.069,597.62,596.85,0.162]
[1741217091779,1.069,597.62,596.86,0.33508695]
[1741217094181,1.069,597.62,596.91,1.24946234]
[1741217094680,1.069,597.62,596.92,0.33505327]
[1741217096479,1.069,597.62,596.92,1.58451561]
[1741217098483,1.069,597.62,596.92,0.33505327]
[1741217114587,1.069,597.62,596.92,0.49705327]
[1741217115892,1.20886849,597.61,596.92,0.49705327]
[1741217116092,2.17530448,597.61,596.92,0.49705327]
[1741217116395,2.17570895,597.6,596.92,0.49705327]
[1741217116594,0.96684046,597.59,596.92,0.49705327]
[1741217116795,1.20886849,597.6,596.92,0.49705327]
[1741217116991,2.17570895,597.6,596.92,0.49705327]
[1741217117193,1.20886849,597.59,596.92,0.49705327]
[1741217117394,2.17570895,597.59,596.92,0.49705327]
[1741217117594,0.96684046,597.58,596.92,0.49705327]
[1741217117796,2.17570895,597.6,596.92,0.49705327]
[1741217117993,0.96684046,597.59,596.92,0.49705327]
[1741217118192,2.17570895,597.59,596.92,0.49705327]
[1741217118395,0.96684046,597.58,596.92,0.49705327]
[1741217118795,1.20886849,597.57,596.92,0.49705327]
[1741217119391,1.20886849,597.56,596.92,0.49705327]
[1741217119595,2.17570895,597.58,596.92,0.49705327]
[1741217119796,0.96684046,597.57,596.92,0.49705327]
[1741217120098,2.17570895,597.57,596.92,0.49705327]
[1741217120298,2.17570895,597.56,596.92,0.49705327]
[1741217120498,0.96684046,597.55,596.92,0.49705327]
[1741217120694,1.20886849,597.56,596.92,0.49705327]
[1741217121106,0.96684046,597.61,596.92,0.49705327]
[1741217121301,0.96684046,597.6,596.92,0.49705327]
[1741217121601,2.17570895,597.59,596.92,0.49705327]
[1741217121799,0.96684046,597.58,596.92,0.49705327]
[1741217121999,0.96684046,597.57,596.92,0.49705327]
[1741217122201,0.96748055,597.57,596.92,0.49705327]
[1741217122397,2.27986849,597.57,596.92,0.49705327]
[1741217122897,0.96746238,597.56,596.92,0.49705327]
[1741217123296,2.27986849,597.57,596.92,0.49705327]
[1741217123500,1.071,597.57,596.92,0.49705327]
[1741217134212,1.071,597.57,596.92,1.74651561]
[1741217136720,1.071,597.57,596.92,0.49705327]
[1741217139515,1.071,597.57,596.95,1.24946234]
[1741217142319,1.071,597.57,596.92,0.62640929]
[1741217143024,1.071,597.57,596.92,0.78840929]
[1741217143524,1.071,597.57,596.92,0.49705327]
[1741217144823,1.071,597.57,596.92,0.78843003]
[1741217146618,1.071,597.57,596.92,0.49705327]
[1741217147824,1.071,597.57,596.92,0.78843003]
[1741217149626,1.071,597.57,596.92,0.49705327]
[1741217150025,1.071,597.57,596.92,0.78841295]
[1741217153629,1.071,597.57,596.98,1.24946234]
[1741217156232,1.071,597.57,596.96,1.24946234]
[1741217157935,1.071,597.57,596.97,0.33502521]
[1741217165530,1.071,597.57,596.98,1.24946234]
[1741217168339,1.071,597.57,596.97,0.6263483]
[1741217168340,1.071,597.57,597.07,1.24946234]
[1741217170738,1.071,597.57,597.06,1.24946234]
[1741217173441,1.071,597.57,597.11,1.24946234]
[1741217174540,0.96738252,597.75,597.11,1.24946234]
[1741217174737,1.20886849,597.76,597.11,1.24946234]
[1741217175142,3.72396226,597.89,597.12,0.162]
[1741217175342,3.01701548,597.88,597.12,0.162]
[1741217175537,3.72389831,597.87,597.12,0.162]
[1741217175737,3.01701548,597.86,597.12,0.162]
[1741217175939,2.51502982,597.85,597.12,0.162]
[1741217176140,0.96731916,597.84,597.12,0.162]
[1741217176340,0.96731916,597.83,597.12,0.162]
[1741217176541,0.96731916,597.82,597.12,0.162]
[1741217176737,2.17618765,597.81,597.12,0.162]
[1741217176937,0.96731916,597.8,597.12,0.162]
[1741217177138,0.96731916,597.79,597.12,0.162]
[1741217177338,2.17618765,597.8,597.12,0.162]
[1741217177543,0.947,597.78,597.12,0.162]
[1741217178444,0.96731916,597.77,597.12,0.162]
[1741217178640,2.17618765,597.76,597.12,0.162]
[1741217178844,0.96731916,597.75,597.12,0.162]
[1741217179044,0.96731916,597.74,597.12,0.162]
[1741217179240,0.96731916,597.73,597.12,0.162]
[1741217179945,2.17618765,597.76,597.12,0.162]
[1741217180145,0.96731916,597.75,597.12,0.162]
[1741217180348,0.96731916,597.74,597.12,0.162]
[1741217180549,0.96731916,597.73,597.12,0.162]
[1741217180741,0.96731916,597.72,597.12,0.162]
[1741217181048,0.96767035,597.73,597.12,0.162]
[1741217181241,0.96767035,597.74,597.12,0.162]
[1741217181441,1.20886849,597.75,597.12,0.162]
[1741217181648,0.96759265,597.77,597.12,0.162]
[1741217181842,0.947,597.78,597.12,0.162]
[1741217192556,0.947,597.78,597.13,0.33493544]
[1741217194559,0.947,597.78,597.17,1.24946234]
[1741217194759,0.947,597.78,597.17,1.58437534]
[1741217197165,0.947,597.78,597.17,0.334913]
[1741217205368,0.947,597.78,597.17,0.496913]
[1741217227987,0.947,597.78,597.3,1.24519262]
[1741217228180,0.947,597.78,597.31,0.3348345]
[1741217232591,0.96347389,598.27,597.31,0.3348345]
[1741217232787,1.20886849,598.28,597.31,0.3348345]
[1741217233388,0.29117075,598.29,597.31,0.3348345]
[1741217233592,0.96347389,598.44,597.31,0.3348345]
[1741217233786,0.29109281,598.33,597.31,0.3348345]
[1741217234286,0.96347389,598.44,597.31,0.3348345]
[1741217234686,0.96347389,598.49,597.31,0.3348345]
[1741217234892,0.29106846,598.43,597.31,0.3348345]
[1741217235693,0.762,598.42,597.31,0.4968345]
[1741217236994,0.2910709,598.41,597.31,0.4968345]
[1741217238095,2.79586772,598.41,597.31,0.4968345]
[1741217238295,0.2910709,598.41,597.31,0.4968345]
[1741217238491,1.20886849,598.4,597.31,0.4968345]
[1741217238696,4.21529641,598.4,597.31,0.4968345]
[1741217238995,3.00642792,598.39,597.31,0.4968345]
[1741217239194,2.50479682,598.38,597.31,0.4968345]
[1741217239389,0.96347389,598.37,597.31,0.4968345]
[1741217239593,0.96347389,598.39,597.31,0.4968345]
[1741217239789,1.20886849,598.37,597.31,0.4968345]
[1741217239995,0.29107455,598.36,597.31,0.4968345]
[1741217242801,2.17234238,598.41,597.31,0.4968345]
[1741217243194,0.96347389,598.4,597.31,0.4968345]
[1741217243398,0.96347389,598.39,597.31,0.4968345]
[1741217243599,0.96347389,598.38,597.31,0.4968345]
[1741217243801,1.49993817,598.38,597.31,0.4968345]
[1741217243995,4.50636609,598.38,597.31,0.4968345]
[1741217244200,3.00642792,598.37,597.31,0.4968345]
[1741217244598,0.96347389,598.36,597.31,0.4968345]
[1741217244797,3.71366531,598.36,597.31,0.4968345]
[1741217245005,3.00754094,598.35,597.31,0.4968345]
[1741217245198,2.50591055,598.34,597.31,0.4968345]
[1741217245602,2.17268024,598.33,597.31,0.4968345]
[1741217245901,3.71477904,598.33,597.31,0.4968345]
[1741217246102,2.50591055,598.32,597.31,0.4968345]
[1741217246299,2.17268024,598.32,597.31,0.4968345]
[1741217246503,0.96381175,598.31,597.31,0.4968345]
[1741217246903,0.29109038,598.33,597.33,1.24519262]
[1741217247100,0.29109038,598.33,597.34,0.33481769]
[1741217248605,0.96423538,598.35,597.34,0.33481769]
[1741217248907,0.2910709,598.33,597.41,1.24519262]
[1741217250509,2.7980829,598.33,597.41,1.24519262]
[1741217250715,2.46417477,598.33,597.39,1.24519262]
[1741217250909,0.96423538,598.32,597.39,1.24519262]
[1741217251215,0.2910709,598.33,597.39,1.24519262]
[1741217251410,1.20886849,598.32,597.39,1.24519262]
[1741217251614,0.762,598.42,597.39,1.24519262]
[1741217251615,4.21751015,598.37,597.39,1.24519262]
[1741217251912,0.29106725,598.33,597.39,1.24519262]
[1741217252116,0.96423538,598.32,597.39,1.24519262]
[1741217252316,1.20886849,598.32,597.39,1.24519262]
[1741217252911,0.96455,598.32,597.4,0.162]
[1741217253615,0.29106725,598.33,597.4,0.162]
[1741217254011,1.25561725,598.33,597.4,0.162]
[1741217254211,1.75724726,598.33,597.4,0.162]
[1741217254413,1.25561725,598.33,597.4,0.162]
[1741217254609,0.762,598.42,597.4,0.162]
[1741217254610,2.17341849,598.32,597.4,0.162]
[1741217254813,0.96455,598.31,597.4,0.162]
[1741217255016,0.96455,598.3,597.4,0.162]
[1741217255215,0.96455,598.29,597.4,0.162]
[1741217255415,0.96455,598.28,597.4,0.162]
[1741217255617,2.17341849,598.27,597.4,0.162]
[1741217255819,0.96455,598.26,597.4,0.162]
[1741217256016,2.17341849,598.25,597.4,0.162]
[1741217256215,0.96455,598.24,597.4,0.162]
[1741217256411,0.96455,598.23,597.4,0.162]
[1741217256615,0.96455,598.22,597.4,0.162]
[1741217256812,0.96455,598.21,597.4,0.162]
[1741217257115,2.17341849,598.2,597.4,0.162]
[1741217257315,0.96455,598.19,597.4,0.162]
[1741217257510,0.96455,598.18,597.4,0.162]
[1741217258111,2.17341849,598.2,597.4,0.162]
[1741217258311,0.96455,598.19,597.4,0.162]
[1741217258513,0.96455,598.18,597.4,0.162]
[1741217258714,1.20886849,598.18,597.4,0.162]
[1741217258920,2.46455514,598.18,597.4,0.162]
[1741217259120,0.96455,598.17,597.4,0.162]
[1741217259514,0.29113665,598.18,597.4,0.162]
[1741217260421,1.25568665,598.18,597.4,0.162]